[Event "*** MasterClass Titled Tuesday Blitz"]
[Site "Chess.com"]
[Date "2017.12.05"]
[Round "10"]
[White "fredjust"]
[Black "GMKrikor"]
[Result "0-1"]
[WhiteElo "1721"]
[BlackElo "2618"]
[TimeControl "180+2"]
[EndTime "16:28:04 PST"]
[Termination "GMKrikor won on time"]

1. d4 {[%clk 0:02:56.6]} 1... Nf6 {[%clk 0:02:57.6]} 2. e3 {[%clk 0:02:55.1]}
2... g6 {[%clk 0:02:58.5]} 3. Bd3 {[%clk 0:02:55.7]} 3... Bg7 {[%clk 0:02:59.9]}
4. Nd2 {[%clk 0:02:55.8]} 4... O-O {[%clk 0:03:01.5]} 5. c3 {[%clk 0:02:53.9]}
5... d6 {[%clk 0:03:02.1]} 6. Ngf3 {[%clk 0:02:48.8]} 6... Nbd7 {[%clk
0:02:51.4]} 7. O-O {[%clk 0:02:49]} 7... e5 {[%clk 0:02:52.6]} 8. dxe5 {[%clk
0:02:46.8]} 8... dxe5 {[%clk 0:02:53.5]} 9. Qc2 {[%clk 0:02:47.6]} 9... Nc5
{[%clk 0:02:53.7]} 10. Nxe5 {[%clk 0:02:39.7]} 10... Ng4 {[%clk 0:02:12.5]} 11.
Nxg4 {[%clk 0:02:19]} 11... Qxd3 {[%clk 0:01:39]} 12. Qxd3 {[%clk 0:02:10.4]}
12... Nxd3 {[%clk 0:01:39.7]} 13. h3 {[%clk 0:01:59.3]} 13... Rd8 {[%clk
0:01:38.6]} 14. Nb3 {[%clk 0:01:51.2]} 14... c5 {[%clk 0:01:21.8]} 15. Nh2
{[%clk 0:01:26.3]} 15... b6 {[%clk 0:01:01.8]} 16. Nf3 {[%clk 0:01:20.2]} 16...
Be6 {[%clk 0:00:55.3]} 17. Ne1 {[%clk 0:01:19.2]} 17... Nxc1 {[%clk 0:00:42.3]}
18. Nxc1 {[%clk 0:01:10.2]} 18... Bc4 {[%clk 0:00:43]} 19. Nb3 {[%clk
0:00:50.3]} 19... a5 {[%clk 0:00:40.3]} 20. Nf3 {[%clk 0:00:43.2]} 20... Bxf1
{[%clk 0:00:39.5]} 21. Kxf1 {[%clk 0:00:44.1]} 21... a4 {[%clk 0:00:39.8]} 22.
Nc1 {[%clk 0:00:42.6]} 22... a3 {[%clk 0:00:40.7]} 23. b3 {[%clk 0:00:21.4]}
23... Bxc3 {[%clk 0:00:39.7]} 24. Rb1 {[%clk 0:00:22.5]} 24... Rd1+ {[%clk
0:00:38.5]} 25. Ke2 {[%clk 0:00:21.9]} 25... Rad8 {[%clk 0:00:28.4]} 26. g4
{[%clk 0:00:12.5]} 26... Bb2 {[%clk 0:00:24.1]} 27. Rxb2 {[%clk 0:00:05.4]}
27... axb2 {[%clk 0:00:24.1]} 0-1

[Event "*** MasterClass Titled Tuesday Blitz"]
[Site "Chess.com"]
[Date "2017.12.05"]
[Round "10"]
[White "tigra"]
[Black "yurisolo"]
[Result "0-1"]
[WhiteElo "2644"]
[BlackElo "2527"]
[TimeControl "180+2"]
[EndTime "16:28:07 PST"]
[Termination "yurisolo won by resignation"]

1. e4 {[%clk 0:03:01.9]} 1... c5 {[%clk 0:03:00.8]} 2. Nf3 {[%clk 0:03:02.7]}
2... d6 {[%clk 0:03:02]} 3. d4 {[%clk 0:03:04.3]} 3... Nf6 {[%clk 0:03:01.5]} 4.
Nc3 {[%clk 0:03:04.8]} 4... cxd4 {[%clk 0:03:00.3]} 5. Nxd4 {[%clk 0:03:06.7]}
5... a6 {[%clk 0:03:00.7]} 6. Bg5 {[%clk 0:03:08.3]} 6... e6 {[%clk 0:03:01.1]}
7. f4 {[%clk 0:03:08.9]} 7... h6 {[%clk 0:03:02]} 8. Bh4 {[%clk 0:03:08.4]} 8...
Qb6 {[%clk 0:03:02]} 9. a3 {[%clk 0:03:07]} 9... Be7 {[%clk 0:02:58.1]} 10. Bf2
{[%clk 0:03:07]} 10... Qc7 {[%clk 0:02:59.2]} 11. Qf3 {[%clk 0:03:06.7]} 11...
Nbd7 {[%clk 0:02:59.2]} 12. O-O-O {[%clk 0:03:06.9]} 12... b5 {[%clk 0:02:59.5]}
13. g4 {[%clk 0:03:00.3]} 13... Bb7 {[%clk 0:02:58.1]} 14. Bg2 {[%clk
0:02:59.8]} 14... Rc8 {[%clk 0:02:58]} 15. h4 {[%clk 0:02:53.8]} 15... e5 {[%clk
0:02:16.2]} 16. Nf5 {[%clk 0:01:43.7]} 16... Bxe4 {[%clk 0:02:08.7]} 17. Qh3
{[%clk 0:00:49.4]} 17... Bxf5 {[%clk 0:02:08]} 18. gxf5 {[%clk 0:00:46.4]} 18...
e4 {[%clk 0:02:06.7]} 19. Kb1 {[%clk 0:00:43.5]} 19... d5 {[%clk 0:01:58.4]} 20.
Bd4 {[%clk 0:00:39.9]} 20... O-O {[%clk 0:01:50.3]} 21. Qg3 {[%clk 0:00:36.2]}
21... Nh5 {[%clk 0:01:47.5]} 22. Qg4 {[%clk 0:00:36.9]} 22... Ndf6 {[%clk
0:01:44]} 23. Qh3 {[%clk 0:00:31.5]} 23... Nxf4 {[%clk 0:01:38.7]} 24. Qh2
{[%clk 0:00:31.5]} 24... Bd6 {[%clk 0:01:24.4]} 25. Bxf6 {[%clk 0:00:25.1]}
25... Nh5 {[%clk 0:01:22.6]} 26. Qg1 {[%clk 0:00:13.5]} 26... Nxf6 {[%clk
0:01:22.4]} 27. Qf2 {[%clk 0:00:13.1]} 27... Bxa3 {[%clk 0:01:14]} 28. Nxd5
{[%clk 0:00:13.4]} 28... Nxd5 {[%clk 0:01:12.7]} 29. Rxd5 {[%clk 0:00:15.3]}
29... e3 {[%clk 0:01:02]} 30. Qe2 {[%clk 0:00:15.8]} 30... Bxb2 {[%clk
0:00:55.7]} 31. Kxb2 {[%clk 0:00:12.7]} 31... Qc3+ {[%clk 0:00:54.6]} 32. Kb1
{[%clk 0:00:13.5]} 32... Rc4 {[%clk 0:00:52.6]} 33. Qxc4 {[%clk 0:00:03.6]}
33... bxc4 {[%clk 0:00:51.9]} 0-1

[Event "*** MasterClass Titled Tuesday Blitz"]
[Site "Chess.com"]
[Date "2017.12.05"]
[Round "10"]
[White "Jahonas"]
[Black "oogee"]
[Result "0-1"]
[WhiteElo "2252"]
[BlackElo "2159"]
[TimeControl "180+2"]
[EndTime "16:28:22 PST"]
[Termination "oogee won by resignation"]

1. d4 {[%clk 0:03:01.9]} 1... Nf6 {[%clk 0:02:53.7]} 2. c4 {[%clk 0:03:01.4]}
2... g6 {[%clk 0:02:49.4]} 3. Nc3 {[%clk 0:03:00.5]} 3... Bg7 {[%clk 0:02:45.5]}
4. e4 {[%clk 0:03:01.2]} 4... d6 {[%clk 0:02:42.2]} 5. f3 {[%clk 0:03:01.6]}
5... O-O {[%clk 0:02:36.9]} 6. Be3 {[%clk 0:03:00.8]} 6... c5 {[%clk 0:02:36.8]}
7. d5 {[%clk 0:03:01.5]} 7... e6 {[%clk 0:02:36.4]} 8. Nge2 {[%clk 0:02:58.3]}
8... exd5 {[%clk 0:02:35.9]} 9. cxd5 {[%clk 0:02:58.4]} 9... h5 {[%clk
0:02:36.6]} 10. h4 {[%clk 0:02:54.3]} 10... Nbd7 {[%clk 0:02:33.4]} 11. Bf2
{[%clk 0:02:33]} 11... Ne5 {[%clk 0:02:22.9]} 12. Nc1 {[%clk 0:02:33.6]} 12...
Bh6 {[%clk 0:02:21.1]} 13. Nd3 {[%clk 0:02:32.9]} 13... Nc4 {[%clk 0:02:20.7]}
14. Nb1 {[%clk 0:02:13.5]} 14... Re8 {[%clk 0:02:18.6]} 15. Be2 {[%clk
0:02:13.8]} 15... Ne3 {[%clk 0:02:06.2]} 16. Bxe3 {[%clk 0:02:11.1]} 16... Bxe3
{[%clk 0:02:05.8]} 17. Nd2 {[%clk 0:01:58.3]} 17... b5 {[%clk 0:01:38.7]} 18.
Nf2 {[%clk 0:01:58.1]} 18... a6 {[%clk 0:01:35.1]} 19. Qc2 {[%clk 0:01:49.7]}
19... c4 {[%clk 0:01:27.2]} 20. Nf1 {[%clk 0:01:45.7]} 20... Bd4 {[%clk
0:01:21.2]} 21. Rd1 {[%clk 0:01:25.3]} 21... Qa5+ {[%clk 0:01:03.7]} 22. Qd2
{[%clk 0:01:25.7]} 22... c3 {[%clk 0:01:04.2]} 23. Qxd4 {[%clk 0:01:26.1]} 23...
c2+ {[%clk 0:01:05.2]} 24. b4 {[%clk 0:01:19]} 24... cxd1=Q+ {[%clk 0:01:04.3]}
25. Nxd1 {[%clk 0:01:19.5]} 25... Qd8 {[%clk 0:01:04.8]} 26. Nfe3 {[%clk
0:01:10.9]} 26... Nd7 {[%clk 0:01:00.4]} 27. f4 {[%clk 0:01:08.7]} 27... Nf6
{[%clk 0:00:55]} 28. Bf3 {[%clk 0:01:03.4]} 28... Bg4 {[%clk 0:00:47.4]} 29. e5
{[%clk 0:01:00.6]} 29... Bxf3 {[%clk 0:00:42.3]} 30. exf6 {[%clk 0:00:58.5]}
30... Bxg2 {[%clk 0:00:41.6]} 31. Rg1 {[%clk 0:00:55.8]} 31... Bf3 {[%clk
0:00:41]} 32. f5 {[%clk 0:00:44.7]} 32... Re4 {[%clk 0:00:36.5]} 33. Qd3 {[%clk
0:00:18.8]} 33... Qxf6 {[%clk 0:00:33.8]} 34. fxg6 {[%clk 0:00:18.8]} 34... fxg6
{[%clk 0:00:27.6]} 35. Rf1 {[%clk 0:00:19.4]} 35... Rae8 {[%clk 0:00:26.4]} 36.
Kd2 {[%clk 0:00:18.8]} 36... Rd4 {[%clk 0:00:21.7]} 0-1

[Event "*** MasterClass Titled Tuesday Blitz"]
[Site "Chess.com"]
[Date "2017.12.05"]
[Round "10"]
[White "kanachess88"]
[Black "pastouche06"]
[Result "0-1"]
[WhiteElo "2262"]
[BlackElo "2342"]
[TimeControl "180+2"]
[EndTime "16:28:24 PST"]
[Termination "pastouche06 won by resignation"]

1. e4 {[%clk 0:03:00.5]} 1... c6 {[%clk 0:03:00.5]} 2. d4 {[%clk 0:03:00.5]}
2... d5 {[%clk 0:03:02]} 3. Nc3 {[%clk 0:03:01.9]} 3... dxe4 {[%clk 0:03:03.1]}
4. Nxe4 {[%clk 0:03:03.4]} 4... Bf5 {[%clk 0:03:04]} 5. Ng3 {[%clk 0:03:04.7]}
5... Bg6 {[%clk 0:03:05.5]} 6. h4 {[%clk 0:03:06.5]} 6... h6 {[%clk 0:03:05.5]}
7. Nh3 {[%clk 0:03:08.1]} 7... Nf6 {[%clk 0:03:03.5]} 8. Nf4 {[%clk 0:03:08.9]}
8... Bh7 {[%clk 0:03:04.4]} 9. Bc4 {[%clk 0:03:08.1]} 9... e6 {[%clk 0:03:05.3]}
10. c3 {[%clk 0:03:08.3]} 10... Bd6 {[%clk 0:02:48.4]} 11. Ngh5 {[%clk
0:03:08.5]} 11... O-O {[%clk 0:02:46.6]} 12. Be3 {[%clk 0:03:02.9]} 12... Nbd7
{[%clk 0:02:42.8]} 13. Nxf6+ {[%clk 0:03:01.3]} 13... Nxf6 {[%clk 0:02:40]} 14.
g4 {[%clk 0:03:01.7]} 14... Nd5 {[%clk 0:02:37.6]} 15. Nxd5 {[%clk 0:03:01.6]}
15... exd5 {[%clk 0:02:38.1]} 16. Bd3 {[%clk 0:03:01.5]} 16... Bxd3 {[%clk
0:02:31.8]} 17. Qxd3 {[%clk 0:03:02.3]} 17... Re8 {[%clk 0:02:33.1]} 18. O-O-O
{[%clk 0:03:00.9]} 18... Qe7 {[%clk 0:02:31.4]} 19. Qd2 {[%clk 0:02:50.6]} 19...
Qe4 {[%clk 0:02:28.8]} 20. Rhg1 {[%clk 0:02:47.6]} 20... Qf3 {[%clk 0:02:19.9]}
21. h5 {[%clk 0:02:41.4]} 21... f6 {[%clk 0:02:12.8]} 22. Kb1 {[%clk 0:02:40.8]}
22... Re4 {[%clk 0:02:10.1]} 23. a3 {[%clk 0:02:01.3]} 23... Rae8 {[%clk
0:02:06.4]} 24. Ka1 {[%clk 0:01:56.5]} 24... Rxg4 {[%clk 0:01:57.2]} 25. Bxh6
{[%clk 0:01:57.3]} 25... gxh6 {[%clk 0:01:42.5]} 26. Qxh6 {[%clk 0:01:57.5]}
26... Bf8 {[%clk 0:01:40.1]} 27. Qd2 {[%clk 0:01:54]} 27... Re2 {[%clk
0:01:12.9]} 28. Qc1 {[%clk 0:01:54.5]} 28... Kh7 {[%clk 0:01:08.7]} 29. Qb1+
{[%clk 0:01:37.5]} 29... f5 {[%clk 0:01:08.8]} 30. Rg3 {[%clk 0:01:31.4]} 30...
Rxg3 {[%clk 0:01:00]} 31. fxg3 {[%clk 0:01:31.8]} 31... Bh6 {[%clk 0:00:57.1]}
32. Rf1 {[%clk 0:01:30.3]} 32... Rf2 {[%clk 0:00:54.9]} 33. Re1 {[%clk 0:01:31]}
33... Bg5 {[%clk 0:00:47.3]} 34. Ka2 {[%clk 0:01:26.8]} 34... Qxg3 {[%clk
0:00:44.5]} 35. Re5 {[%clk 0:01:23.4]} 35... Qf3 {[%clk 0:00:44.3]} 36. Qe1
{[%clk 0:01:14.9]} 36... Rf1 {[%clk 0:00:42.5]} 37. Re7+ {[%clk 0:01:09]} 37...
Bxe7 {[%clk 0:00:32.7]} 38. Qxe7+ {[%clk 0:01:10.4]} 38... Kh6 {[%clk
0:00:34.3]} 39. Qxb7 {[%clk 0:01:11.5]} 39... Kxh5 {[%clk 0:00:30.9]} 40. Qxc6
{[%clk 0:01:11.8]} 40... f4 {[%clk 0:00:31.6]} 41. Qe8+ {[%clk 0:01:11.4]} 41...
Kg4 {[%clk 0:00:31.9]} 42. Qg6+ {[%clk 0:01:12.3]} 42... Kh3 {[%clk 0:00:33]}
43. Qh6+ {[%clk 0:01:13.6]} 43... Kg2 {[%clk 0:00:34.3]} 44. Qg5+ {[%clk
0:01:14.9]} 44... Kf2 {[%clk 0:00:35.5]} 45. Qh4+ {[%clk 0:01:15.3]} 45... Qg3
{[%clk 0:00:36.4]} 46. Qh5 {[%clk 0:01:15.2]} 46... Rg1 {[%clk 0:00:35.5]} 47.
Qxd5 {[%clk 0:01:16]} 47... Qg8 {[%clk 0:00:36]} 48. Qxg8 {[%clk 0:01:16.2]}
48... Rxg8 {[%clk 0:00:37.9]} 49. d5 {[%clk 0:01:17.7]} 0-1

[Event "*** MasterClass Titled Tuesday Blitz"]
[Site "Chess.com"]
[Date "2017.12.05"]
[Round "10"]
[White "krzyzan94"]
[Black "OparinGrigoriy"]
[Result "0-1"]
[WhiteElo "2603"]
[BlackElo "2721"]
[TimeControl "180+2"]
[EndTime "16:28:35 PST"]
[Termination "OparinGrigoriy won by resignation"]

1. e4 {[%clk 0:03:01.9]} 1... c5 {[%clk 0:03:00.8]} 2. Nf3 {[%clk 0:03:02.1]}
2... Nc6 {[%clk 0:03:02.4]} 3. Bb5 {[%clk 0:03:00.4]} 3... g6 {[%clk 0:03:02.8]}
4. Bxc6 {[%clk 0:02:59.9]} 4... bxc6 {[%clk 0:03:04.7]} 5. O-O {[%clk
0:02:59.7]} 5... Bg7 {[%clk 0:03:06.1]} 6. Re1 {[%clk 0:02:59.8]} 6... Nh6
{[%clk 0:03:07.6]} 7. c3 {[%clk 0:02:51.2]} 7... O-O {[%clk 0:03:09]} 8. h3
{[%clk 0:02:50.9]} 8... f6 {[%clk 0:03:10]} 9. d4 {[%clk 0:02:50.1]} 9... cxd4
{[%clk 0:03:11.9]} 10. cxd4 {[%clk 0:02:50.9]} 10... Nf7 {[%clk 0:03:13.8]} 11.
Nc3 {[%clk 0:02:50.8]} 11... d6 {[%clk 0:03:15.5]} 12. Be3 {[%clk 0:02:48.4]}
12... Qa5 {[%clk 0:03:16.2]} 13. Rc1 {[%clk 0:02:46.8]} 13... Bd7 {[%clk
0:03:16.9]} 14. b3 {[%clk 0:02:47.3]} 14... Rab8 {[%clk 0:03:16.2]} 15. Qd2
{[%clk 0:02:48.3]} 15... Rfc8 {[%clk 0:03:14]} 16. Qe2 {[%clk 0:02:23]} 16...
Qd8 {[%clk 0:03:12.7]} 17. Nd2 {[%clk 0:02:22.8]} 17... a5 {[%clk 0:03:13]} 18.
f4 {[%clk 0:02:22.6]} 18... Rb4 {[%clk 0:03:03.2]} 19. Nc4 {[%clk 0:02:18.3]}
19... Be6 {[%clk 0:02:54.4]} 20. Nd2 {[%clk 0:01:37.2]} 20... h6 {[%clk
0:02:22.7]} 21. Nf3 {[%clk 0:01:35.8]} 21... g5 {[%clk 0:02:23]} 22. f5 {[%clk
0:01:23.4]} 22... Bd7 {[%clk 0:02:24.4]} 23. Red1 {[%clk 0:01:23.3]} 23... d5
{[%clk 0:02:24.1]} 24. exd5 {[%clk 0:01:18.2]} 24... Bxf5 {[%clk 0:02:22.8]} 25.
dxc6 {[%clk 0:01:18.3]} 25... Rxc6 {[%clk 0:02:24.2]} 26. d5 {[%clk 0:01:19.4]}
26... Rc8 {[%clk 0:02:24.7]} 27. Nd4 {[%clk 0:01:17.5]} 27... Bd7 {[%clk
0:02:21.9]} 28. Nc6 {[%clk 0:01:14.4]} 28... Bxc6 {[%clk 0:02:20.1]} 29. dxc6
{[%clk 0:01:16.3]} 29... Qe8 {[%clk 0:02:20.9]} 30. Nd5 {[%clk 0:01:14.4]} 30...
Re4 {[%clk 0:02:20.8]} 31. c7 {[%clk 0:01:00.6]} 31... f5 {[%clk 0:02:10.1]} 32.
Qf2 {[%clk 0:00:50.9]} 32... f4 {[%clk 0:02:06.3]} 33. Ba7 {[%clk 0:00:39]}
33... Be5 {[%clk 0:01:18.4]} 34. Bb6 {[%clk 0:00:29.3]} 34... Bd6 {[%clk
0:01:16.4]} 35. Qf3 {[%clk 0:00:27.1]} 35... Re6 {[%clk 0:01:17.2]} 36. Qg4
{[%clk 0:00:22.1]} 36... Rg6 {[%clk 0:01:17.9]} 37. Re1 {[%clk 0:00:15.7]} 37...
e6 {[%clk 0:01:14]} 38. Bxa5 {[%clk 0:00:16.1]} 38... Kh7 {[%clk 0:01:00.5]} 39.
Qd1 {[%clk 0:00:12.4]} 39... Qb5 {[%clk 0:00:59.4]} 40. Nb6 {[%clk 0:00:10.8]}
40... Rxc7 {[%clk 0:00:58.8]} 41. Rxc7 {[%clk 0:00:08.9]} 41... Bxc7 {[%clk
0:01:00.7]} 42. Qd7 {[%clk 0:00:08.1]} 42... Bxb6+ {[%clk 0:00:58.7]} 0-1

[Event "*** MasterClass Titled Tuesday Blitz"]
[Site "Chess.com"]
[Date "2017.12.05"]
[Round "10"]
[White "nurmiTV"]
[Black "RookSacrifice_OLD"]
[Result "1-0"]
[WhiteElo "2457"]
[BlackElo "1838"]
[TimeControl "180+2"]
[EndTime "16:28:36 PST"]
[Termination "nurmiTV won by resignation"]

1. c3 {[%clk 0:02:34.4]} 1... d5 {[%clk 0:02:59.8]} 2. g3 {[%clk 0:02:35]} 2...
e5 {[%clk 0:02:59.6]} 3. Bg2 {[%clk 0:02:36.1]} 3... Nf6 {[%clk 0:02:51.7]} 4.
d4 {[%clk 0:02:33.3]} 4... e4 {[%clk 0:02:42.1]} 5. c4 {[%clk 0:02:31.5]} 5...
c6 {[%clk 0:02:41.9]} 6. Bg5 {[%clk 0:02:32.1]} 6... Nbd7 {[%clk 0:02:32.6]} 7.
Nc3 {[%clk 0:02:23.6]} 7... h6 {[%clk 0:02:32.4]} 8. Bxf6 {[%clk 0:02:16.6]}
8... Nxf6 {[%clk 0:02:32.8]} 9. e3 {[%clk 0:02:17.2]} 9... Bg4 {[%clk
0:02:06.6]} 10. Qb3 {[%clk 0:02:15.3]} 10... Qd7 {[%clk 0:02:07]} 11. h3 {[%clk
0:02:14.2]} 11... Be6 {[%clk 0:02:02.9]} 12. cxd5 {[%clk 0:02:13.2]} 12... Bxd5
{[%clk 0:02:02]} 13. Qc2 {[%clk 0:02:12.7]} 13... Qf5 {[%clk 0:01:55.1]} 14.
Nge2 {[%clk 0:02:11.4]} 14... h5 {[%clk 0:01:46.3]} 15. Nf4 {[%clk 0:02:06.7]}
15... Bd6 {[%clk 0:01:36.6]} 16. O-O-O {[%clk 0:01:57.7]} 16... O-O {[%clk
0:01:30.6]} 17. Kb1 {[%clk 0:01:57]} 17... Rfc8 {[%clk 0:01:24.6]} 18. Qe2
{[%clk 0:01:45.5]} 18... Rab8 {[%clk 0:01:13.1]} 19. Rdg1 {[%clk 0:01:43.4]}
19... b5 {[%clk 0:01:11.3]} 20. g4 {[%clk 0:01:25.4]} 20... hxg4 {[%clk
0:01:01.4]} 21. hxg4 {[%clk 0:01:21.5]} 21... Qxg4 {[%clk 0:01:01.6]} 22. Ncxd5
{[%clk 0:01:06.4]} 22... cxd5 {[%clk 0:00:56.1]} 23. Qxg4 {[%clk 0:00:47.1]}
23... Nxg4 {[%clk 0:00:58]} 24. Nxd5 {[%clk 0:00:48.7]} 24... Nxf2 {[%clk
0:00:53.5]} 25. Rh5 {[%clk 0:00:46]} 25... g6 {[%clk 0:00:36]} 26. Bf1 {[%clk
0:00:45.7]} 26... Kf8 {[%clk 0:00:21.5]} 27. Rh7 {[%clk 0:00:44.2]} 27... Nd3
{[%clk 0:00:20.2]} 28. Be2 {[%clk 0:00:43.7]} 28... Be7 {[%clk 0:00:14.6]} 29.
Rh8+ {[%clk 0:00:41.8]} 29... Kg7 {[%clk 0:00:15.2]} 30. Rxc8 {[%clk 0:00:43.7]}
30... Rxc8 {[%clk 0:00:16.4]} 31. Nxe7 {[%clk 0:00:45.1]} 31... Rc7 {[%clk
0:00:15.6]} 32. Nd5 {[%clk 0:00:43.2]} 32... Rc4 {[%clk 0:00:14.4]} 33. Nf4
{[%clk 0:00:38.4]} 33... Rc6 {[%clk 0:00:10.9]} 34. Nxd3 {[%clk 0:00:38.8]}
34... exd3 {[%clk 0:00:12.8]} 35. Bxd3 {[%clk 0:00:40.4]} 35... Kf6 {[%clk
0:00:11.9]} 36. Bxb5 {[%clk 0:00:40.7]} 36... Re6 {[%clk 0:00:12]} 37. Rg3
{[%clk 0:00:41.2]} 37... Re4 {[%clk 0:00:12.8]} 38. Bd3 {[%clk 0:00:41.2]} 38...
Rh4 {[%clk 0:00:13.6]} 39. a4 {[%clk 0:00:40.2]} 39... Rh2 {[%clk 0:00:14.1]}
40. a5 {[%clk 0:00:41.2]} 40... Ke6 {[%clk 0:00:15]} 41. Ka2 {[%clk 0:00:42.2]}
41... f5 {[%clk 0:00:15]} 42. Kb3 {[%clk 0:00:43.4]} 42... Kf6 {[%clk
0:00:15.7]} 43. Kc3 {[%clk 0:00:44.2]} 43... g5 {[%clk 0:00:17.2]} 44. Rf3
{[%clk 0:00:44.7]} 44... g4 {[%clk 0:00:16.5]} 45. Rxf5+ {[%clk 0:00:45.6]}
45... Kg6 {[%clk 0:00:17.4]} 46. Rf2+ {[%clk 0:00:46.7]} 46... Kh5 {[%clk
0:00:17.5]} 47. Rxh2+ {[%clk 0:00:48.6]} 1-0

[Event "*** MasterClass Titled Tuesday Blitz"]
[Site "Chess.com"]
[Date "2017.12.05"]
[Round "10"]
[White "Angry_Serb"]
[Black "Korchmar_Vasiliy"]
[Result "1-0"]
[WhiteElo "2358"]
[BlackElo "2500"]
[TimeControl "180+2"]
[EndTime "16:28:49 PST"]
[Termination "Angry_Serb won on time"]

1. Nf3 {[%clk 0:03:01.9]} 1... d5 {[%clk 0:03:00.8]} 2. g3 {[%clk 0:03:02.6]}
2... g6 {[%clk 0:03:01.8]} 3. Bg2 {[%clk 0:03:04.5]} 3... Bg7 {[%clk 0:03:03.2]}
4. d4 {[%clk 0:03:05]} 4... Nf6 {[%clk 0:03:04.2]} 5. O-O {[%clk 0:03:05.1]}
5... O-O {[%clk 0:03:05.7]} 6. Be3 {[%clk 0:03:05.3]} 6... Bf5 {[%clk
0:03:01.4]} 7. Qc1 {[%clk 0:03:04.8]} 7... Re8 {[%clk 0:02:49.9]} 8. Nbd2 {[%clk
0:03:02.1]} 8... Nbd7 {[%clk 0:02:41.1]} 9. c4 {[%clk 0:02:58.8]} 9... c5 {[%clk
0:02:33.5]} 10. dxc5 {[%clk 0:02:55.3]} 10... Rc8 {[%clk 0:02:30.9]} 11. Nb3
{[%clk 0:02:44.9]} 11... Ng4 {[%clk 0:02:22.6]} 12. cxd5 {[%clk 0:02:41.9]}
12... Nxe3 {[%clk 0:02:13]} 13. Qxe3 {[%clk 0:02:43.8]} 13... Bxb2 {[%clk
0:02:14]} 14. Rad1 {[%clk 0:02:41.7]} 14... Bg7 {[%clk 0:01:48.5]} 15. Nfd4
{[%clk 0:02:34.3]} 15... Nf6 {[%clk 0:01:33.5]} 16. Nxf5 {[%clk 0:02:25.2]}
16... gxf5 {[%clk 0:01:35.4]} 17. Qf4 {[%clk 0:02:10.7]} 17... Qd7 {[%clk
0:01:29.4]} 18. Rd3 {[%clk 0:02:01.1]} 18... Ng4 {[%clk 0:01:22.8]} 19. Bh3
{[%clk 0:01:54.6]} 19... Bh6 {[%clk 0:01:17.3]} 20. Qb4 {[%clk 0:01:45.3]} 20...
Ne5 {[%clk 0:01:07.1]} 21. Rdd1 {[%clk 0:01:42.9]} 21... Ng4 {[%clk 0:00:51.2]}
22. e4 {[%clk 0:01:28.3]} 22... Qc7 {[%clk 0:00:42.4]} 23. exf5 {[%clk
0:01:24.8]} 23... Nf6 {[%clk 0:00:41.4]} 24. Rfe1 {[%clk 0:01:20.1]} 24... Rcd8
{[%clk 0:00:40.8]} 25. Bg2 {[%clk 0:01:20.5]} 25... Qc8 {[%clk 0:00:31]} 26. d6
{[%clk 0:01:15.5]} 26... Qxf5 {[%clk 0:00:27.6]} 27. Qxb7 {[%clk 0:01:06.3]}
27... Ng4 {[%clk 0:00:21.2]} 28. Qf3 {[%clk 0:01:02.6]} 28... Qg6 {[%clk
0:00:20.2]} 29. d7 {[%clk 0:01:02.3]} 29... Rf8 {[%clk 0:00:21.3]} 30. c6 {[%clk
0:01:03.1]} 30... Nf6 {[%clk 0:00:20.3]} 31. Nc5 {[%clk 0:00:57.8]} 31... Qc2
{[%clk 0:00:12.6]} 32. Nb7 {[%clk 0:00:38.9]} 32... Rb8 {[%clk 0:00:14]} 33.
d8=Q {[%clk 0:00:36.5]} 33... Rfxd8 {[%clk 0:00:11.1]} 34. Rxd8+ {[%clk
0:00:36.4]} 34... Rxd8 {[%clk 0:00:12.3]} 35. Nxd8 {[%clk 0:00:38.3]} 35... Bd2
{[%clk 0:00:13.9]} 36. Rd1 {[%clk 0:00:38.6]} 36... Ba5 {[%clk 0:00:11.6]} 37.
Qd3 {[%clk 0:00:38.2]} 37... Qc5 {[%clk 0:00:11.5]} 38. Nb7 {[%clk 0:00:37.7]}
38... Qb6 {[%clk 0:00:11.9]} 39. Nxa5 {[%clk 0:00:38.7]} 39... Qxa5 {[%clk
0:00:13.8]} 40. Qd8+ {[%clk 0:00:39.9]} 1-0

[Event "*** MasterClass Titled Tuesday Blitz"]
[Site "Chess.com"]
[Date "2017.12.05"]
[Round "10"]
[White "wanyaland"]
[Black "Blitz-rider"]
[Result "1-0"]
[WhiteElo "2226"]
[BlackElo "1969"]
[TimeControl "180+2"]
[EndTime "16:28:49 PST"]
[Termination "wanyaland won on time"]

1. d4 {[%clk 0:03:01.9]} 1... Nf6 {[%clk 0:02:59.6]} 2. c4 {[%clk 0:03:03.8]}
2... g6 {[%clk 0:03:00.4]} 3. Nc3 {[%clk 0:03:04.5]} 3... Bg7 {[%clk 0:03:01.8]}
4. e4 {[%clk 0:03:04.8]} 4... d6 {[%clk 0:03:02.7]} 5. Nf3 {[%clk 0:03:05.8]}
5... O-O {[%clk 0:03:02.3]} 6. Be2 {[%clk 0:03:06.8]} 6... e5 {[%clk 0:03:01.1]}
7. O-O {[%clk 0:03:07.4]} 7... Nc6 {[%clk 0:03:01]} 8. d5 {[%clk 0:03:08.2]}
8... Ne7 {[%clk 0:03:02.3]} 9. Ne1 {[%clk 0:03:08.6]} 9... a6 {[%clk 0:02:51.6]}
10. Be3 {[%clk 0:03:08.3]} 10... c5 {[%clk 0:02:40.6]} 11. dxc6 {[%clk
0:03:06.4]} 11... Nxc6 {[%clk 0:02:26]} 12. f3 {[%clk 0:03:06.3]} 12... Nh5
{[%clk 0:02:26.2]} 13. Qd2 {[%clk 0:03:03.6]} 13... f5 {[%clk 0:02:00.5]} 14.
Nc2 {[%clk 0:03:02]} 14... Rf7 {[%clk 0:01:39.4]} 15. Rfd1 {[%clk 0:03:00.4]}
15... Bf8 {[%clk 0:01:28.6]} 16. Bf1 {[%clk 0:02:56.8]} 16... Qh4 {[%clk
0:01:19.2]} 17. Qf2 {[%clk 0:02:49.5]} 17... Qf6 {[%clk 0:01:01]} 18. Nd5 {[%clk
0:02:48.2]} 18... Qd8 {[%clk 0:00:53.1]} 19. Bb6 {[%clk 0:02:45.2]} 19... Qg5
{[%clk 0:00:35.6]} 20. Nc7 {[%clk 0:00:12]} 20... Rb8 {[%clk 0:00:28.1]} 21.
exf5 {[%clk 0:00:10]} 21... gxf5 {[%clk 0:00:25.3]} 22. Kh1 {[%clk 0:00:08.9]}
22... Nf4 {[%clk 0:00:16.2]} 23. Ne3 {[%clk 0:00:09.5]} 23... Nd4 {[%clk
0:00:11.6]} 24. Bxd4 {[%clk 0:00:08.4]} 24... exd4 {[%clk 0:00:08.5]} 25. Ned5
{[%clk 0:00:07.3]} 25... Nxd5 {[%clk 0:00:04.3]} 26. Nxd5 {[%clk 0:00:09.2]}
26... Be6 {[%clk 0:00:04.4]} 27. Rxd4 {[%clk 0:00:08.7]} 27... Bxd5 {[%clk
0:00:02.2]} 28. Rxd5 {[%clk 0:00:10.6]} 28... Rc8 {[%clk 0:00:02.6]} 29. Rad1
{[%clk 0:00:11.8]} 1-0